bitfinex/quotes_BTCUSD_20240823
["timestamp","ask_amount","ask_price","bid_price","bid_amount"]
[1724456881145,0.06885916,64080.0,64068.0,0.0768]
[1724456881361,0.02446488,64073.0,64070.0,0.26779192]
[1724456881592,0.02446488,64073.0,64071.0,0.04242678]
[1724456881765,0.02446488,64073.0,64069.0,0.0642]
[1724456882433,0.06885916,64080.0,64070.0,0.26779192]
[1724456882821,0.13889053,64086.0,64070.0,0.42396993]
[1724456883019,0.13889053,64086.0,64077.0,0.42385292]
[1724456883226,0.13889053,64086.0,64078.0,0.023]
[1724456883399,0.13889053,64086.0,64079.0,0.02907919]
[1724456883993,0.13889053,64086.0,64080.0,0.0768]
[1724456884198,0.13889053,64086.0,64083.0,0.26779192]
[1724456884395,0.13889053,64086.0,64084.0,0.023]
[1724456884826,0.312012,64101.0,64084.0,0.023]
[1724456885173,0.014,64086.0,64085.0,0.05236429]
[1724456885303,0.014,64086.0,64085.0,0.11656429]
[1724456885510,0.156029,64091.0,64085.0,0.0642]
[1724456885727,0.312044,64094.0,64085.0,0.0642]
[1724456886059,0.18048879,64090.0,64085.0,0.0642]
[1724456886265,0.02445679,64090.0,64085.0,0.0642]
[1724456886469,0.003,64086.0,64085.0,0.0642]
[1724456886678,0.02445679,64090.0,64085.0,0.25734]
[1724456886822,0.02445679,64090.0,64087.0,0.156036]
[1724456887028,0.02445679,64090.0,64088.0,0.023]
[1724456887236,0.02445679,64090.0,64088.0,0.179035]
[1724456887457,0.02445679,64090.0,64088.0,0.023]
[1724456887811,0.02445679,64090.0,64086.0,0.023]
[1724456887935,0.02445679,64090.0,64085.0,0.058034]
[1724456888719,0.156035,64088.0,64077.0,0.15606]
[1724456888909,0.02445679,64090.0,64076.0,0.26779192]
[1724456889134,0.15617801,64087.0,64068.0,0.312163]
[1724456889325,0.312083,64086.0,64081.0,0.01067052]
[1724456889528,0.156041,64086.0,64081.0,0.01067052]
[1724456889736,0.02445679,64090.0,64081.0,0.01067052]
[1724456889883,0.02445679,64090.0,64085.0,0.03]
[1724456890307,0.156036,64088.0,64085.0,0.03]
[1724456890858,0.02445679,64090.0,64085.0,0.03]
[1724456891009,0.156034,64089.0,64085.0,0.03]
[1724456891584,0.15604,64086.0,64085.0,0.04174705]
[1724456891958,0.31221401,64088.0,64085.0,0.04174705]
[1724456892159,0.156036,64088.0,64085.0,0.04174705]
[1724456892337,0.02445679,64090.0,64085.0,0.04174705]
[1724456892338,0.18448879,64090.0,64085.0,0.04174705]
[1724456892542,0.156034,64089.0,64085.0,0.04174705]
[1724456892872,0.02445679,64090.0,64086.0,0.02726686]
[1724456893441,0.18448779,64090.0,64084.0,0.0642]
[1724456893647,0.18048779,64090.0,64084.0,0.0642]
[1724456894104,0.156034,64089.0,64084.0,0.0642]
[1724456894326,0.02845679,64090.0,64085.0,0.03077245]
[1724456894538,0.02845679,64090.0,64086.0,0.156039]
[1724456894868,0.156034,64089.0,64085.0,0.03077245]
[1724456895084,0.02845679,64090.0,64084.0,0.220244]
[1724456895260,0.02845679,64090.0,64084.0,0.0642]
[1724456895479,0.156034,64089.0,64084.0,0.0642]
[1724456895682,0.02845679,64090.0,64084.0,0.0642]
[1724456895884,0.18048779,64090.0,64085.0,0.03077175]
[1724456896037,0.18448779,64090.0,64085.0,0.03077175]
[1724456896464,0.02445679,64090.0,64089.0,0.156033]
[1724456896718,0.02536759,64090.0,64089.0,0.156033]
[1724456896929,0.02536759,64090.0,64089.0,0.238533]
[1724456897147,0.02536759,64090.0,64089.0,0.17383807]
[1724456897328,0.02936759,64090.0,64089.0,0.17383807]
[1724456897964,0.02936759,64090.0,64089.0,0.64193707]
[1724456898201,0.02936759,64090.0,64089.0,0.66493707]
[1724456898989,0.03336759,64090.0,64089.0,0.66493707]
[1724456899156,0.02536759,64090.0,64089.0,0.66493707]
[1724456899718,0.02536759,64090.0,64089.0,0.17383807]
[1724456899943,0.1815456,64090.0,64081.0,0.0825]
[1724456900167,0.1815456,64090.0,64077.0,0.0619]
[1724456900168,0.16007922,64089.0,64077.0,0.0619]
[1724456900370,0.15605,64082.0,64077.0,0.0619]
[1724456900583,0.31209,64084.0,64077.0,0.0619]
[1724456900778,0.156057,64079.0,64077.0,0.0619]
[1724456900977,0.156054,64081.0,64077.0,0.0619]
[1724456901496,0.33655734,64083.0,64078.0,0.0218795]
[1724456901672,0.156053,64081.0,64078.0,0.0218795]
[1724456902876,0.001,64081.0,64078.0,0.0218795]
[1724456902996,0.001,64081.0,64079.0,0.0825]
[1724456904035,0.156052,64082.0,64079.0,0.0825]
[1724456904253,0.156052,64081.0,64079.0,0.0825]
[1724456905230,0.02446034,64083.0,64079.0,0.0825]
[1724456905467,0.156051,64082.0,64079.0,0.0825]
[1724456905677,0.156053,64081.0,64079.0,0.0825]
[1724456905876,0.02446034,64083.0,64079.0,0.0825]
[1724456906196,0.15605,64082.0,64079.0,0.0825]
[1724456907708,0.156053,64081.0,64079.0,0.0825]
[1724456907922,0.04539102,64093.0,64080.0,0.45409933]
[1724456908135,0.312009,64101.0,64087.0,0.26779192]
[1724456908338,0.156005,64101.0,64089.0,0.468099]
[1724456908573,0.312009,64101.0,64089.0,0.156033]
[1724456908743,0.156009,64099.0,64089.0,0.468099]
[1724456909021,0.156009,64099.0,64089.0,0.26082949]
[1724456909459,0.156009,64099.0,64089.0,0.57289549]
[1724456909784,0.156004,64101.0,64089.0,0.88496149]
[1724456909958,0.0079108,64090.0,64089.0,0.88496149]
[1724456910563,0.0149108,64090.0,64089.0,0.88496149]
[1724456910810,0.0149108,64090.0,64089.0,0.99046149]
[1724456911841,0.0009108,64090.0,64089.0,1.05236149]
[1724456912045,0.0029108,64090.0,64089.0,1.36442749]
[1724456912292,0.0029108,64090.0,64089.0,1.5206055]
[1724456913378,0.0009108,64090.0,64089.0,1.5206055]
[1724456914138,0.0009108,64090.0,64089.0,1.6206055]
[1724456915487,0.0009108,64090.0,64089.0,1.6281271]
[1724456916033,0.0009108,64090.0,64089.0,1.9411931]
[1724456916734,0.0009108,64090.0,64089.0,1.6591271]
[1724456917648,0.0009108,64090.0,64089.0,1.9711931]
[1724456918061,0.04460434,64114.0,64109.0,0.155984]
[1724456918390,0.06854031,64116.0,64110.0,0.1798384]
[1724456918391,0.04587028,64116.0,64110.0,0.1798384]
[1724456918574,0.06880543,64116.0,64110.0,0.0238584]
[1724456918773,0.06880543,64116.0,64107.0,0.05406621]
[1724456919005,0.155971,64115.0,64108.0,0.155986]
[1724456919356,0.155968,64116.0,64109.0,0.155984]
[1724456919522,0.0244482,64114.0,64110.0,0.04778421]
[1724456919726,0.0244482,64114.0,64106.0,0.26779192]
[1724456920169,0.15598,64111.0,64106.0,0.26779192]
[1724456920582,0.0908,64113.0,64106.0,0.26779192]
[1724456920768,0.0908,64113.0,64098.0,0.3181515]
[1724456920769,0.24697801,64113.0,64100.0,0.26779192]
[1724456920981,0.155985,64109.0,64102.0,0.156001]
[1724456921209,0.311954,64112.0,64101.0,0.06859434]
[1724456921210,0.155987,64108.0,64101.0,0.06859434]
[1724456921410,0.15598,64111.0,64104.0,0.155994]
[1724456921975,0.02444913,64110.0,64104.0,0.155994]
[1724456922366,0.02444913,64110.0,64102.0,0.312]
[1724456922602,0.02444913,64110.0,64103.0,0.03607304]
[1724456922603,0.04587028,64106.0,64103.0,0.03607304]
[1724456922814,0.04587028,64107.0,64103.0,0.03607304]
[1724456923769,0.09238014,64107.0,64105.0,0.08404623]
[1724456923977,0.34580014,64106.0,64105.0,0.08404623]
[1724456924851,0.09238014,64108.0,64103.0,0.19207104]
[1724456925056,0.06945105,64105.0,64103.0,0.03607304]
[1724456925459,0.09238014,64105.0,64097.0,0.0684]
[1724456925662,0.04631084,64099.0,64098.0,0.2447445]
[1724456925869,0.312017,64099.0,64091.0,0.0684]
[1724456926078,0.06946626,64101.0,64091.0,0.156026]
[1724456926079,0.59447069,64098.0,64091.0,0.156026]
[1724456926299,0.09261652,64096.0,64091.0,0.156027]
[1724456926492,0.43845869,64096.0,64095.0,0.01580929]
[1724456927061,0.43845869,64096.0,64095.0,0.00018781]
[1724456927443,0.09261652,64097.0,64095.0,0.00018781]
[1724456927682,0.3458708,64096.0,64095.0,0.00018781]
[1724456927926,0.3458708,64096.0,64092.0,0.156025]
[1724456928126,0.09267418,64097.0,64090.0,0.02604069]
[1724456928127,0.06951133,64094.0,64090.0,0.02604069]
[1724456928326,0.06951133,64094.0,64091.0,0.22104527]
[1724456928531,0.04634459,64092.0,64091.0,0.22104527]
[1724456928730,0.04634459,64093.0,64091.0,0.06501827]
[1724456928971,0.156021,64094.0,64083.0,0.000828]
[1724456928972,0.06951133,64094.0,64083.0,0.000828]
[1724456929182,0.04634325,64090.0,64085.0,0.156042]
[1724456929385,0.04634325,64089.0,64087.0,0.156036]
[1724456929608,0.04634325,64090.0,64087.0,0.156036]
[1724456929807,0.04634325,64088.0,64087.0,0.156036]
[1724456930015,0.04635218,64088.0,64087.0,0.05806043]
[1724456930215,0.04635218,64088.0,64083.0,0.1629223]
[1724456930385,0.04635218,64088.0,64083.0,0.000828]
[1724456930581,0.04635218,64087.0,64083.0,0.26861992]
[1724456930850,0.04635218,64088.0,64086.0,0.15604]
[1724456931132,0.04635218,64089.0,64086.0,0.15604]
[1724456931341,0.04635218,64089.0,64087.0,0.07367589]
[1724456931553,0.04635218,64090.0,64089.0,0.156033]
[1724456931700,0.09270436,64096.0,64095.0,0.156018]
[1724456931701,0.04635218,64096.0,64095.0,0.156018]
[1724456931940,0.04635218,64097.0,64094.0,0.156019]
[1724456932128,0.04635218,64097.0,64095.0,0.22460409]
[1724456932351,0.04635218,64098.0,64095.0,0.06858609]
[1724456932608,0.11715947,64102.0,64095.0,0.06858609]
[1724456932609,0.20235718,64101.0,64095.0,0.06858609]
[1724456932764,0.156006,64100.0,64095.0,0.06858609]
[1724456932964,0.04635218,64101.0,64095.0,0.06858609]
[1724456933167,0.002,64097.0,64096.0,0.05366581]
[1724456933370,0.20235618,64101.0,64096.0,0.05366581]
[1724456933566,0.02445511,64102.0,64096.0,0.05366581]
[1724456933770,0.07080729,64102.0,64096.0,0.05366581]
[1724456933991,0.156004,64101.0,64096.0,0.05366581]
[1724456934220,0.156004,64101.0,64097.0,0.05217358]
[1724456934615,0.156004,64101.0,64097.0,0.04717358]
[1724456934798,0.003,64098.0,64097.0,0.04717358]
[1724456935026,0.156005,64101.0,64097.0,0.04717358]
[1724456935250,0.162005,64101.0,64097.0,0.04717358]
[1724456935423,0.006,64101.0,64098.0,0.02040216]
[1724456935636,0.02445511,64102.0,64098.0,0.02040216]
[1724456935834,0.006,64101.0,64098.0,0.02040216]
[1724456936034,0.162004,64101.0,64098.0,0.02040216]
[1724456936587,0.156004,64101.0,64098.0,0.02040216]
[1724456936973,0.02445511,64102.0,64099.0,0.02244237]
[1724456937915,0.03145511,64102.0,64099.0,0.02244237]
[1724456938378,0.02445511,64102.0,64099.0,0.02244237]
[1724456938581,0.03145511,64102.0,64097.0,0.04717358]
[1724456938756,0.03145511,64102.0,64097.0,0.20318658]
[1724456939755,0.02445511,64102.0,64097.0,0.20318658]
[1724456940238,0.02445511,64102.0,64095.0,0.000828]
[1724456940454,0.877777,64096.0,64095.0,0.000828]
[1724456940600,1.03395501,64096.0,64095.0,0.000828]
[1724456940800,1.11705501,64096.0,64095.0,0.000828]
[1724456941171,1.47547047,64096.0,64095.0,0.000828]
[1724456941371,1.49866271,64096.0,64095.0,0.000828]
[1724456941598,1.77499689,64096.0,64095.0,0.000828]
[1724456941858,1.87976582,64096.0,64095.0,0.000828]
[1724456942079,1.77499689,64096.0,64095.0,0.000828]
[1724456942556,1.78499689,64096.0,64095.0,0.000828]
[1724456944464,1.77499689,64096.0,64095.0,0.000828]
[1724456944736,1.78799689,64096.0,64095.0,1e-08]
[1724456945518,1.78801342,64096.0,64095.0,1e-08]
[1724456945728,0.23871721,64096.0,64095.0,1e-08]
[1724456945939,0.05935955,64096.0,64095.0,0.73584593]
[1724456946283,0.013,64096.0,64095.0,0.50721452]
[1724456946473,0.013,64096.0,64095.0,0.81925052]
[1724456948067,0.02445511,64102.0,64096.0,0.156014]
[1724456948287,0.02445511,64102.0,64096.0,0.27207328]
[1724456949777,0.03245511,64102.0,64096.0,0.27207328]
[1724456950001,0.03245511,64102.0,64096.0,0.11605928]
[1724456950198,0.156004,64101.0,64096.0,0.11605928]
[1724456950412,0.03245511,64102.0,64096.0,0.11605928]
[1724456950614,0.18845611,64102.0,64097.0,0.06196672]
[1724456950852,0.18845611,64102.0,64095.0,0.15601601]
[1724456951261,0.18045611,64102.0,64095.0,0.15601601]
[1724456951414,0.156004,64101.0,64095.0,0.15601601]
[1724456951629,0.162004,64101.0,64095.0,0.15601601]
[1724456951837,0.156004,64101.0,64096.0,0.06522585]
[1724456952304,0.156007,64100.0,64096.0,0.06522585]
[1724456952508,0.20236655,64100.0,64096.0,0.06522585]
[1724456952682,0.20236855,64099.0,64096.0,0.06522585]
[1724456952983,0.20237155,64098.0,64096.0,0.06522585]
[1724456953213,0.0695392,64100.0,64097.0,0.03010499]
[1724456953214,0.04635955,64100.0,64097.0,0.03010499]
[1724456953398,0.04635955,64101.0,64097.0,0.03010499]
[1724456953592,0.07081466,64102.0,64097.0,0.18611699]
[1724456953792,0.006,64101.0,64099.0,0.156007]
[1724456954000,0.006,64101.0,64097.0,0.18611699]
[1724456954199,0.006,64101.0,64098.0,0.0498154]
[1724456954621,0.006,64101.0,64096.0,0.16223231]
[1724456954970,0.006,64101.0,64097.0,0.156013]
[1724456955171,0.02445511,64102.0,64097.0,0.156013]
[1724456955609,0.005,64100.0,64095.0,1e-08]
[1724456955943,0.005,64100.0,64095.0,0.15601701]
[1724456956625,0.04635955,64101.0,64095.0,0.15601701]
[1724456956840,0.005,64100.0,64095.0,1e-08]
[1724456957470,0.161006,64100.0,64095.0,1e-08]
[1724456958052,0.166006,64100.0,64095.0,1e-08]
[1724456958936,0.161006,64100.0,64095.0,1e-08]
[1724456959371,0.312031,64096.0,64095.0,1e-08]
[1724456959578,1.17113257,64096.0,64095.0,1e-08]
[1724456959782,1.70247866,64096.0,64095.0,1e-08]
[1724456959981,0.61037066,64096.0,64080.0,0.46876099]
[1724456960181,0.468135,64084.0,64080.0,0.46876099]
[1724456960383,0.156041,64086.0,64079.0,0.000828]
[1724456960536,0.156043,64085.0,64079.0,0.000828]
[1724456960746,0.02445805,64084.0,64079.0,0.000828]
[1724456961151,0.02445805,64084.0,64079.0,0.156884]
[1724456961352,0.02445805,64084.0,64083.0,0.0478109]
[1724456961553,0.02445805,64084.0,64083.0,0.000828]
[1724456961959,1.14176106,64084.0,64083.0,0.000828]
[1724456962388,1.21135469,64084.0,64083.0,0.000828]
[1724456964223,1.14176106,64084.0,64083.0,0.000828]
[1724456964423,0.02445805,64084.0,64083.0,0.000828]
[1724456965166,0.02445805,64084.0,64083.0,0.55242139]
[1724456965638,0.02445805,64084.0,64083.0,0.86451639]
[1724456965840,0.0463792,64094.0,64091.0,0.156027]
[1724456966066,0.0463792,64095.0,64091.0,0.252927]
[1724456966268,0.02445625,64093.0,64092.0,0.156025]
[1724456966471,0.02445625,64093.0,64092.0,0.08327729]
[1724456966646,0.02445625,64093.0,64088.0,0.26779192]
[1724456966824,0.02445625,64093.0,64083.0,0.09051788]
[1724456966825,0.156028,64091.0,64083.0,0.09051788]
[1724456967026,0.312067,64089.0,64083.0,0.00706649]
[1724456967234,0.156037,64087.0,64083.0,0.00706649]
[1724456967433,0.156037,64087.0,64083.0,0.000828]
[1724456968277,0.51449669,64089.0,64083.0,0.000828]
[1724456968475,0.20242969,64089.0,64083.0,0.000828]
[1724456968914,0.156037,64088.0,64083.0,0.000828]
[1724456969729,0.05139569,64089.0,64084.0,0.09501511]
[1724456969926,0.20242669,64090.0,64084.0,0.25105911]
[1724456970126,0.004,64088.0,64084.0,0.09501511]
[1724456970332,0.004,64088.0,64085.0,0.156042]
[1724456971341,0.004,64088.0,64086.0,0.156038]
[1724456971860,0.004,64088.0,64087.0,0.0831765]
[1724456972054,0.004,64088.0,64087.0,0.2392135]
[1724456972230,0.04639569,64090.0,64085.0,0.156868]
[1724456972474,0.04639569,64090.0,64086.0,0.156039]
[1724456973225,0.004,64088.0,64086.0,0.156039]
[1724456973427,0.04639569,64090.0,64086.0,0.156039]
[1724456973542,0.04639569,64090.0,64087.0,0.0832594]
[1724456973741,0.05239569,64090.0,64089.0,0.312066]
[1724456973943,0.04639569,64092.0,64091.0,0.156028]
[1724456974432,0.04643011,64092.0,64091.0,0.156028]
[1724456974614,0.04643011,64092.0,64091.0,0.88272936]
[1724456974817,0.02445625,64093.0,64092.0,0.468076]
[1724456975478,0.02445625,64093.0,64092.0,0.156025]
[1724456976192,0.02445625,64093.0,64091.0,0.02118936]
[1724456976391,0.02445625,64093.0,64090.0,0.156028]
[1724456976747,0.02445625,64093.0,64062.0,0.312193]
[1724456976748,0.312066,64089.0,64085.0,0.000828]
[1724456977150,0.156036,64088.0,64085.0,0.000828]
[1724456977852,0.156038,64087.0,64085.0,0.000828]
[1724456978375,0.15604,64086.0,64085.0,0.000828]
[1724456979171,0.22692789,64086.0,64085.0,0.000828]
[1724456979497,0.22792789,64086.0,64085.0,0.000828]
[1724456979701,0.07188789,64086.0,64085.0,0.000828]
[1724456979903,0.02545778,64086.0,64085.0,0.0165988]
[1724456980108,0.07188789,64086.0,64085.0,0.0165988]
[1724456980513,0.02545778,64086.0,64085.0,0.0165988]
[1724456980783,0.22792789,64086.0,64085.0,0.0165988]
[1724456980983,0.22792789,64086.0,64085.0,0.000828]
[1724456981178,0.30432789,64086.0,64085.0,0.000828]
[1724456981385,0.25789778,64086.0,64085.0,0.000828]
[1724456982782,0.18149778,64086.0,64085.0,0.000828]
[1724456982992,0.02545778,64086.0,64085.0,0.000828]
[1724456983219,0.02545778,64086.0,64085.0,0.0165988]
[1724456983502,0.07188484,64086.0,64085.0,0.0165988]
[1724456983743,0.18149778,64086.0,64085.0,0.0165988]
[1724456984612,0.02545778,64086.0,64085.0,0.0165988]
[1724456984818,0.18149778,64086.0,64085.0,0.0165988]
[1724456985024,0.02545778,64086.0,64085.0,0.0165988]
[1724456985602,0.07188941,64086.0,64085.0,0.0165988]
[1724456986473,0.02545778,64086.0,64085.0,0.0165988]
[1724456986681,0.02545778,64086.0,64085.0,0.1171988]
[1724456986910,0.02545778,64086.0,64085.0,0.2732408]
[1724456987139,0.02545778,64086.0,64085.0,0.5853258]
[1724456987514,0.02545778,64086.0,64085.0,0.2732408]
[1724456988162,0.02545778,64086.0,64085.0,0.1726408]
[1724456988365,0.02545778,64086.0,64085.0,0.4847258]
[1724456988589,0.001,64086.0,64085.0,0.4847258]
[1724456988821,0.02545688,64086.0,64085.0,0.4847258]
[1724456990075,0.02545688,64086.0,64085.0,0.1726408]
[1724456990246,0.02545688,64086.0,64085.0,0.4847258]
[1724456992041,0.02545688,64086.0,64085.0,0.1726408]
[1724456992253,0.02545688,64086.0,64085.0,0.7968108]
[1724456992466,0.001,64086.0,64085.0,0.7968108]
[1724456994727,0.001,64086.0,64085.0,0.8766108]
[1724456995705,0.02545541,64086.0,64085.0,0.8766108]
[1724456996848,0.02545541,64086.0,64085.0,0.9738108]
[1724456997052,0.02545541,64086.0,64085.0,0.9968108]
[1724456997335,0.02545541,64086.0,64085.0,1.3088958]
[1724456997884,0.02545541,64086.0,64085.0,0.9968108]
[1724456998657,0.02545541,64086.0,64085.0,1.26460272]
[1724456998994,0.02545541,64086.0,64085.0,1.57668772]
[1724456999397,0.02545541,64086.0,64085.0,1.26460272]
[1724456999971,0.02545541,64086.0,64085.0,1.57668772]
[1724457000304,0.02545541,64086.0,64085.0,1.26460272]
[1724457000913,0.001,64086.0,64085.0,1.57668772]
[1724457001231,0.001,64086.0,64085.0,1.26460272]
[1724457001435,0.09501511,64092.0,64085.0,1.26460272]
[1724457001436,0.09501511,64092.0,64091.0,0.468084]
[1724457001815,0.09501511,64092.0,64091.0,0.5460991]
[1724457003468,0.09501511,64092.0,64091.0,0.5490991]
[1724457007893,0.09501511,64092.0,64091.0,1.56120302]
[1724457009420,0.09501511,64092.0,64091.0,1.56726487]
[1724457011656,0.09501511,64092.0,64091.0,0.51089687]
[1724457013494,0.09501511,64092.0,64091.0,0.82295287]
[1724457014003,0.0009108,64095.0,64091.0,0.66692487]
[1724457014168,0.0009108,64095.0,64093.0,0.156022]
[1724457015235,0.0009108,64095.0,64092.0,0.10567797]
[1724457015440,0.0009108,64095.0,64092.0,0.26170297]
[1724457015680,0.0009108,64095.0,64093.0,0.156023]
[1724457017028,0.0009108,64095.0,64092.0,0.10567797]
[1724457017308,0.0009108,64095.0,64092.0,0.26170097]
[1724457017837,0.0009108,64095.0,64092.0,0.156023]
[1724457018446,0.0009108,64095.0,64091.0,0.35186887]
[1724457018595,0.0009108,64095.0,64091.0,0.50789587]
[1724457019408,0.0009108,64095.0,64091.0,0.35186887]
[1724457019704,0.0009108,64095.0,64091.0,0.50789587]
[1724457019904,0.0009108,64095.0,64092.0,0.09171599]
[1724457020216,0.0009108,64095.0,64093.0,0.000826]
[1724457020419,0.72673901,64094.0,64093.0,0.000826]
[1724457020622,1.77991039,64094.0,64093.0,0.000826]
[1724457020823,0.65382,64086.0,64085.0,0.000828]
[1724457020951,1.40470301,64086.0,64085.0,0.000828]
[1724457021151,1.40468832,64086.0,64085.0,0.000828]
[1724457021495,1.42914828,64086.0,64085.0,0.000828]
[1724457021735,1.33624934,64086.0,64085.0,0.000828]
[1724457023340,0.99035996,64086.0,64085.0,0.000828]
[1724457023813,0.99335996,64086.0,64085.0,0.000828]
[1724457025007,1.30543996,64086.0,64085.0,0.000828]
[1724457026749,1.33932345,64086.0,64085.0,0.000828]
[1724457027266,1.33932008,64086.0,64085.0,0.000828]
[1724457028307,1.43433519,64086.0,64085.0,0.000828]
[1724457030219,1.74641519,64086.0,64085.0,0.000828]
[1724457030421,1.52714537,64086.0,64085.0,0.000828]
[1724457030629,1.5967578,64086.0,64085.0,0.000828]
[1724457030801,1.52713596,64086.0,64085.0,0.000828]
[1724457031004,1.55035947,64086.0,64085.0,0.000828]
[1724457031323,1.43432578,64086.0,64085.0,0.000828]
[1724457031860,1.52713541,64086.0,64085.0,0.000828]
[1724457032061,1.43432578,64086.0,64085.0,0.000828]
[1724457032185,1.4343355,64086.0,64085.0,0.000828]
[1724457033207,1.52712731,64086.0,64085.0,0.000828]
[1724457033590,1.90259351,64086.0,64085.0,0.000828]
[1724457035535,2.01860409,64086.0,64085.0,0.000828]
[1724457035735,2.01860409,64086.0,64085.0,1e-08]
[1724457037025,2.0185566,64086.0,64085.0,1e-08]
[1724457037232,1.90260824,64086.0,64085.0,1e-08]
[1724457038828,2.04174627,64086.0,64085.0,1e-08]
[1724457039081,1.89960824,64086.0,64085.0,1e-08]
[1724457039319,1.91360824,64086.0,64085.0,1e-08]
[1724457042086,1.91360824,64086.0,64067.0,0.0154759]
[1724457042087,0.002,64068.0,64067.0,0.0154759]
[1724457042295,1.14969102,64068.0,64067.0,0.0154759]
[1724457042477,2.57083537,64068.0,64067.0,0.0154759]
[1724457042679,2.67083537,64068.0,64067.0,0.0154759]
[1724457042910,2.34767161,64068.0,64067.0,0.0154759]
[1724457043115,2.2087338,64068.0,64067.0,0.0154759]
[1724457043939,1.86260431,64068.0,64067.0,0.0154759]
[1724457044155,1.93203628,64068.0,64067.0,0.0163019]
[1724457044393,1.86260431,64068.0,64067.0,0.0163019]
[1724457044567,1.9460094,64068.0,64067.0,0.0163019]
[1724457044971,1.9320094,64068.0,64067.0,0.0163019]
[1724457045216,1.87660431,64068.0,64067.0,0.0163019]
[1724457045458,1.02132228,64068.0,64067.0,0.0163019]
[1724457045646,0.97506831,64068.0,64067.0,0.05476128]
[1724457045881,1.15226831,64068.0,64067.0,0.0163019]
[1724457046124,1.92485828,64068.0,64067.0,0.0163019]
[1724457046327,2.22473494,64068.0,64067.0,0.0163019]
[1724457047380,2.21073494,64068.0,64067.0,0.0163019]
[1724457047583,2.22473494,64068.0,64067.0,0.0163019]
[1724457048228,2.32621509,64068.0,64067.0,0.0163019]
[1724457048433,2.63838309,64068.0,64067.0,0.0163019]
[1724457048642,2.21073494,64068.0,64067.0,0.0163019]
[1724457049140,2.22473494,64068.0,64067.0,0.0163019]
[1724457049776,2.34017429,64068.0,64067.0,0.0163019]
[1724457050124,2.22473494,64068.0,64067.0,0.0163019]
[1724457050327,2.21073494,64068.0,64067.0,0.0163019]
[1724457050562,2.22473494,64068.0,64067.0,0.0163019]
[1724457050773,0.78064,64050.0,64049.0,0.1005]
[1724457050940,0.78064,64050.0,64049.0,0.13012645]
[1724457051544,0.8051134,64050.0,64049.0,0.02962645]
[1724457052147,1.1293694,64050.0,64049.0,0.02962645]
[1724457052867,1.1293694,64050.0,64042.0,0.1005]
[1724457052868,0.78065,64049.0,64042.0,0.1005]
[1724457054374,0.79165,64049.0,64042.0,0.1005]
[1724457054573,0.78065,64049.0,64042.0,0.1005]
[1724457054975,0.79065,64049.0,64042.0,0.1005]
[1724457055200,0.78065,64049.0,64042.0,0.1005]
[1724457056437,0.79165,64049.0,64042.0,0.1005]
[1724457056839,0.78065,64049.0,64042.0,0.1005]
[1724457057047,0.78965,64049.0,64048.0,0.19659046]
[1724457057527,1.25808801,64049.0,64048.0,0.19659046]
[1724457059934,1.24908801,64049.0,64048.0,0.19659046]
[1724457060454,1.25808801,64049.0,64048.0,0.19659046]
[1724457065751,1.25808801,64049.0,64048.0,1e-08]
[1724457066181,1.25808801,64049.0,64038.0,0.0902]
[1724457066182,0.468463,64039.0,64038.0,0.08520001]
[1724457066523,0.468463,64039.0,64029.0,0.0736]
[1724457066524,0.780845,64033.0,64029.0,0.0736]
[1724457066729,0.780845,64033.0,64032.0,0.0077794]
[1724457066939,0.780845,64033.0,64032.0,0.01807034]
[1724457067151,0.780845,64033.0,64032.0,0.0077794]
[1724457067912,0.773545,64033.0,64032.0,0.0077794]
[1724457068315,1.40776101,64033.0,64032.0,0.0077794]
[1724457068524,1.24506101,64033.0,64032.0,0.0077794]
[1724457069200,1.41076101,64033.0,64032.0,0.0077794]
[1724457069400,1.41276101,64033.0,64032.0,0.0077794]
[1724457069607,1.41076101,64033.0,64032.0,0.0077794]
[1724457069827,1.456912,64033.0,64032.0,0.0077794]
[1724457070026,1.453912,64033.0,64032.0,0.0077794]
[1724457070199,1.83009901,64033.0,64032.0,0.0077794]
[1724457070584,1.56190029,64033.0,64032.0,0.0077794]
[1724457070792,1.56190472,64033.0,64032.0,0.0077794]
[1724457070976,1.56390472,64033.0,64032.0,0.0077794]
[1724457071180,1.50976101,64033.0,64032.0,0.0077794]
[1724457071385,1.82209901,64033.0,64032.0,0.0077794]
[1724457071584,1.83609901,64033.0,64032.0,0.0077794]
[1724457071886,2.28372147,64033.0,64032.0,0.0077794]
[1724457072152,2.28372147,64033.0,64028.0,0.00826]
[1724457072153,1.478166,64031.0,64028.0,0.00826]
[1724457072333,1.72944401,64031.0,64028.0,0.00826]
[1724457072547,1.82944401,64031.0,64028.0,0.00826]
[1724457072759,1.20274801,64031.0,64028.0,0.00826]
[1724457072947,1.15663209,64031.0,64028.0,0.00826]
[1724457073147,1.53958009,64031.0,64028.0,0.00826]
[1724457073389,1.54158009,64031.0,64028.0,0.00826]
[1724457073592,1.85392809,64031.0,64028.0,0.00826]
[1724457073747,1.90003322,64031.0,64028.0,0.00826]
[1724457073946,2.21427185,64031.0,64028.0,0.00826]
[1724457074148,2.200276,64031.0,64028.0,0.00826]
[1724457074347,2.56030454,64031.0,64028.0,0.00826]
[1724457074524,2.48206792,64031.0,64028.0,0.00826]
[1724457074712,2.78041592,64031.0,64028.0,0.00826]
[1724457075348,2.80958049,64031.0,64028.0,0.00826]
[1724457075546,2.92487626,64031.0,64028.0,0.00826]
[1724457075761,0.470573,64024.0,64023.0,0.00826]
[1724457076103,1.57664034,64024.0,64023.0,0.00826]
[1724457076339,1.8890005,64024.0,64023.0,0.00826]
[1724457076539,2.6413623,64024.0,64023.0,0.00826]
[1724457076742,0.002,64021.0,64018.0,0.00011]
[1724457076944,2.18539237,64021.0,64018.0,0.00011]
[1724457077194,2.19325765,64021.0,64018.0,0.00011]
[1724457077393,2.61689697,64021.0,64018.0,0.00011]
[1724457077595,2.30444093,64021.0,64018.0,0.00011]
[1724457077796,2.25842382,64021.0,64018.0,0.00011]
[1724457077910,0.002,64014.0,64003.0,2.0]
[1724457078112,0.55522,64004.0,64003.0,1.84021539]
[1724457078316,1.33635801,64004.0,64003.0,1.84021539]
[1724457078544,0.96186978,64004.0,64003.0,1.84021539]
[1724457078954,0.64938978,64004.0,64003.0,1.84021539]
[1724457079208,0.49290978,64004.0,64003.0,1.84021539]
[1724457079383,0.80538978,64004.0,64003.0,1.84021539]
[1724457079601,1.43034978,64004.0,64003.0,1.84021539]
[1724457080380,1.44434978,64004.0,64003.0,1.84021539]
[1724457081044,1.75882978,64004.0,64003.0,1.84021539]